fUSD/lending_fUSD_20250505
["ID","MTS","AMOUNT","RATE_DAILY","PERIOD"]
[359944832,1746443210796,-540.07192061,0.00019999,2]
[359944833,1746443210822,-452.49506506,0.00019999,2]
[359944834,1746443210849,-450.0,0.00019999,2]
[359944835,1746443210879,-450.0,0.00019999,2]
[359944836,1746443210906,-630.0,0.0002,2]
[359944837,1746443210930,-450.0,0.00019999,2]
[359944838,1746443210942,-450.0,0.0002,2]
[359944839,1746443210953,-983.4,0.0002,2]
[359944840,1746443210965,-450.0,0.0002,2]
[359944841,1746443210977,-1405.92,0.0002,2]
[359944842,1746443210989,-7265.2,0.0002,2]
[359944843,1746443211006,-450.0,0.00019999,2]
[359944844,1746443211017,-3.82586919,0.00019999,2]
[359944845,1746443211027,-511.36413081,0.0002,2]
[359944846,1746443211038,-3761.91,0.0002,2]
[359944847,1746443211054,-374.146941,0.00019999,2]
[359944848,1746443211066,-75.853059,0.00019999,2]
[359944849,1746443211075,-374.146941,0.0002,2]
[359944850,1746443211087,-450.0,0.0002,2]
[359944851,1746443211098,-450.0,0.0002,2]
[359944852,1746443211109,-450.0,0.0002,2]
[359944853,1746443211120,-450.0,0.0002,2]
[359944854,1746443211131,-450.0,0.0002,2]
[359944855,1746443211143,-450.0,0.0002,2]
[359944856,1746443211154,-450.0,0.0002,2]
[359944857,1746443211170,-377.01656966,0.00019999,2]
[359944858,1746443211179,-83.66343034,0.0002,2]
[359944859,1746443211192,-500.0,0.0002,2]
[359944860,1746443211203,-450.0,0.0002,2]
[359944861,1746443211214,-450.0,0.0002,2]
[359944862,1746443211225,-196.44,0.0002,2]
[359944863,1746443211236,-450.0,0.0002,2]
[359944864,1746443211247,-450.0,0.0002,2]
[359944865,1746443211261,-450.0,0.0002,2]
[359944866,1746443211272,-386.07,0.0002,2]
[359944867,1746443211284,-450.0,0.0002,2]
[359944868,1746443211295,-450.0,0.0002,2]
[359944869,1746443211307,-450.0,0.0002,2]
[359944870,1746443211318,-450.0,0.0002,2]
[359944871,1746443211330,-450.0,0.0002,2]
[359944872,1746443211341,-278.43,0.0002,2]
[359944873,1746443211352,-450.0,0.0002,2]
[359944874,1746443211363,-450.0,0.0002,2]
[359944875,1746443211376,-983.4,0.0002,2]
[359944876,1746443211387,-983.4,0.0002,2]
[359944877,1746443211398,-983.4,0.0002,2]
[359944878,1746443211410,-983.4,0.0002,2]
[359944879,1746443211421,-983.4,0.0002,2]
[359944880,1746443211438,-450.0,0.00019996,2]
[359944881,1746443211447,-533.4,0.0002,2]
[359944882,1746443211458,-983.4,0.0002,2]
[359944883,1746443211470,-983.4,0.0002,2]
[359944884,1746443211481,-983.4,0.0002,2]
[359944885,1746443211492,-983.4,0.0002,2]
[359944886,1746443211504,-983.4,0.0002,2]
[359944887,1746443211515,-983.4,0.0002,2]
[359944888,1746443211526,-983.4,0.0002,2]
[359944889,1746443211542,-450.0,0.00019999,2]
[359944890,1746443211551,-533.4,0.0002,2]
[359944891,1746443211562,-983.4,0.0002,2]
[359944892,1746443211574,-983.4,0.0002,2]
[359944893,1746443211585,-983.4,0.0002,2]
[359944894,1746443211596,-983.4,0.0002,2]
[359944895,1746443211607,-983.4,0.0002,2]
[359944896,1746443211617,-983.4,0.0002,2]
[359944897,1746443211628,-983.4,0.0002,2]
[359944898,1746443211638,-983.4,0.0002,2]
[359944899,1746443211654,-450.0,0.00019999,2]
[359944900,1746443211663,-533.52000004,0.0002,2]
[359944901,1746443211674,-450.0,0.0002,2]
[359944902,1746443211685,-450.0,0.0002,2]
[359944903,1746443211696,-450.0,0.0002,2]
[359944904,1746443211707,-40.58804184,0.0002,2]
[359944905,1746443211745,-634.20956432,0.00019895,2]
[359944906,1746443211757,-457.56853568,0.00019895,2]
[359944907,1746443211767,-450.0,0.00019994,2]
[359944908,1746443211777,-450.0,0.00019995,2]
[359944909,1746443211787,-48.35146432,0.00019999,2]
[359944910,1746443211799,-311.18758493,0.00019999,2]
[359944911,1746443211808,-1094.73241507,0.0002,2]
[359944912,1746443211819,-1405.92,0.0002,2]
[359944913,1746443211830,-889.21,0.0002,2]
[359944914,1746443211840,-450.0,0.0002,2]
[359944915,1746443211851,-1405.92,0.0002,2]
[359944916,1746443211866,-889.21,0.0002,2]
[359944917,1746443211878,-1405.92,0.0002,2]
[359944918,1746443211889,-889.21,0.0002,2]
[359944919,1746443211901,-1405.92,0.0002,2]
[359944920,1746443211912,-889.21,0.0002,2]
[359944921,1746443211922,-1405.92,0.0002,2]
[359944922,1746443211933,-889.21,0.0002,2]
[359944923,1746443211945,-450.0,0.0002,2]
[359944924,1746443211956,-1405.92,0.0002,2]
[359944925,1746443211967,-889.21,0.0002,2]
[359944926,1746443211978,-450.0,0.0002,2]
[359944927,1746443211989,-1405.92,0.0002,2]
[359944928,1746443212000,-889.21,0.0002,2]
[359944929,1746443212016,-450.0,0.0002,2]
[359944930,1746443212028,-1406.09,0.0002,2]
[359944931,1746443212040,-889.21,0.0002,2]
[359944932,1746443212051,-450.0,0.0002,2]
[359944933,1746443212062,-889.21,0.0002,2]
[359944934,1746443212073,-413.66974328,0.0002,2]
[359944935,1746443212089,-450.0,0.00019999,2]
[359944936,1746443212098,-439.21,0.0002,2]
[359944937,1746443212109,-889.21,0.0002,2]
[359944938,1746443212120,-889.21,0.0002,2]
[359944939,1746443212131,-889.21,0.0002,2]
[359944940,1746443212142,-450.0,0.0002,2]
[359944941,1746443212153,-889.21,0.0002,2]
[359944942,1746443212171,-450.0,0.0002,2]
[359944943,1746443212191,-450.0,0.00019999,2]
[359944944,1746443212200,-439.21,0.0002,2]
[359944945,1746443212210,-7265.2,0.0002,2]
[359944946,1746443212221,-450.0,0.0002,2]
[359944947,1746443212232,-450.0,0.0002,2]
[359944948,1746443212244,-889.21,0.0002,2]
[359944949,1746443212257,-7265.2,0.0002,2]
[359944950,1746443212268,-450.0,0.0002,2]
[359944951,1746443212280,-7265.2,0.0002,2]
[359944952,1746443212292,-889.21,0.0002,2]
[359944953,1746443212310,-450.0,0.00019999,2]
[359944954,1746443212322,-55.72372806,0.00019999,2]
[359944955,1746443212332,-7209.47627194,0.0002,2]
[359944956,1746443212453,-291.66,0.00019996,2]
[359944957,1746443212468,-187.99,0.00019996,2]
[359944958,1746443212477,-701.22,0.0002,2]
[359944959,1746443212494,-450.0,0.00019996,2]
[359944960,1746443212505,-889.21,0.0002,2]
[359944961,1746443212516,-450.0,0.0002,2]
[359944962,1746443212527,-889.21,0.0002,2]
[359944963,1746443212538,-450.0,0.0002,2]
[359944964,1746443212549,-889.21,0.0002,2]
[359944965,1746443212561,-450.0,0.0002,2]
[359944966,1746443212571,-889.25,0.0002,2]
[359944967,1746443212588,-450.0,0.00019999,2]
[359944968,1746443212605,-29.65,0.00019999,2]
[359944969,1746443212614,-420.35,0.00019999,2]
[359944970,1746443212625,-29.65,0.00019999,2]
[359944971,1746443212634,-420.35,0.0002,2]
[359944972,1746443212645,-450.0,0.0002,2]
[359944973,1746443212656,-450.0,0.0002,2]
[359944974,1746443212666,-450.0,0.0002,2]
[359944975,1746443212677,-450.0,0.0002,2]
[359944976,1746443212688,-450.0,0.0002,2]
[359944977,1746443212699,-450.0,0.0002,2]
[359944978,1746443212715,-450.0,0.00019999,2]
[359944979,1746443212732,-29.65,0.00019999,2]
[359944980,1746443212741,-420.35,0.00019999,2]
[359944981,1746443212753,-29.65,0.00019999,2]
[359944982,1746443212762,-420.35,0.0002,2]
[359944983,1746443212773,-450.0,0.0002,2]
[359944984,1746443212784,-450.0,0.0002,2]
[359944985,1746443212795,-450.0,0.0002,2]
[359944986,1746443212806,-450.0,0.0002,2]
[359944987,1746443212817,-450.0,0.0002,2]
[359944988,1746443212828,-233.78200781,0.0002,2]
[359944989,1746443212850,-450.0,0.00019994,2]
[359944990,1746443212862,-20.2759004,0.00019994,2]
[359944991,1746443212872,-429.7240996,0.00019999,2]
[359944992,1746443212887,-49.9259004,0.00019999,2]
[359944993,1746443212897,-400.0740996,0.0002,2]
[359944994,1746443212908,-450.0,0.0002,2]
[359944995,1746443212919,-450.0,0.0002,2]
[359944996,1746443212936,-450.0,0.00019999,2]
[359944997,1746443212946,-321.36,0.0002,2]
[359944998,1746443212957,-771.36,0.0002,2]
[359944999,1746443212968,-771.36,0.0002,2]
[359945000,1746443212979,-7265.2,0.0002,2]
[359945001,1746443212996,-479.65,0.00019999,2]
[359945002,1746443213005,-291.71,0.0002,2]
[359945003,1746443213015,-7265.2,0.0002,2]
[359945004,1746443213026,-771.36,0.0002,2]
[359945005,1746443213037,-450.0,0.0002,2]
[359945006,1746443213048,-7265.2,0.0002,2]
[359945007,1746443213064,-390.29,0.00019999,2]
[359945008,1746443213073,-381.07,0.0002,2]
[359945009,1746443213084,-7265.2,0.0002,2]
[359945010,1746443213095,-771.36,0.0002,2]
[359945011,1746443213105,-450.0,0.0002,2]
[359945012,1746443213116,-7265.2,0.0002,2]
[359945013,1746443213132,-479.65,0.00019999,2]
[359945014,1746443213142,-291.71,0.0002,2]
[359945015,1746443213153,-450.0,0.0002,2]
[359945016,1746443213164,-7265.2,0.0002,2]
[359945017,1746443213175,-771.36,0.0002,2]
[359945018,1746443213191,-450.0,0.00019999,2]
[359945019,1746443213202,-29.65,0.00019999,2]
[359945020,1746443213211,-7235.55,0.0002,2]
[359945021,1746443213222,-771.36,0.0002,2]
[359945022,1746443213233,-450.0,0.0002,2]
[359945023,1746443213243,-7265.2,0.0002,2]
[359945024,1746443213257,-450.0,0.0002,2]
[359945025,1746443213270,-771.36,0.0002,2]
[359945026,1746443213287,-479.65,0.00019999,2]
[359945027,1746443213296,-6785.55,0.0002,2]
[359945028,1746443213306,-771.36,0.0002,2]
[359945029,1746443213321,-7265.2,0.0002,2]
[359945030,1746443213337,-450.0,0.0002,2]
[359945031,1746443213351,-771.36,0.0002,2]
[359945032,1746443213362,-450.0,0.0002,2]
[359945033,1746443213373,-771.36,0.0002,2]
[359945034,1746443213388,-210.97125667,0.0002,2]
[359945035,1746443213408,-479.65,0.00019999,2]
[359945036,1746443213417,-6785.55,0.0002,2]
[359945037,1746443213431,-450.0,0.0002,2]
[359945038,1746443213446,-771.36,0.0002,2]
[359945039,1746443213461,-450.0,0.0002,2]
[359945040,1746443213475,-7265.2,0.0002,2]
[359945041,1746443213492,-450.0,0.00019996,2]
[359945042,1746443213501,-321.36,0.0002,2]
[359945043,1746443213516,-450.0,0.0002,2]
[359945044,1746443213527,-7265.2,0.0002,2]
[359945045,1746443213549,-479.65,0.00019999,2]
[359945046,1746443213558,-291.71,0.00019999,2]
[359945047,1746443213569,-158.83443669,0.00019999,2]
[359945048,1746443213578,-2555.56791915,0.0002,2]
[359945049,1746443213648,-479.65,0.00019999,2]
[359945050,1746443213657,-479.65,0.00019999,2]
[359945051,1746443213666,-450.0,0.00019999,2]
[359945052,1746443213675,-479.65,0.00019999,2]
[359945053,1746443213684,-552.73946429,0.00019999,2]
[359945054,1746443213693,-479.65,0.00019999,2]
[359945055,1746443213702,-479.65,0.00019999,2]
[359945056,1746443213710,-276.05962751,0.00019999,2]
[359945057,1746443213721,-203.59037249,0.00019999,2]
[359945058,1746443213730,-246.40962751,0.00019999,2]
[359945059,1746443213746,-450.0,0.00019996,2]
[359945060,1746443213757,-233.24037249,0.00019999,2]
[359945061,1746443213766,-479.65,0.00019999,2]
[359945062,1746443213775,-3049.01962751,0.0002,2]
[359945063,1746443213785,-450.0,0.0002,2]
[359945064,1746443213801,-479.65,0.00019999,2]
[359945065,1746443213810,-3282.26,0.0002,2]
[359945066,1746443213821,-176.04,0.0002,2]
[359945067,1746443213832,-3761.91,0.0002,2]
[359945068,1746443213843,-3761.91,0.0002,2]
[359945069,1746443213859,-3761.91,0.0002,2]
[359945070,1746443213870,-3761.91,0.0002,2]
[359945071,1746443213890,-450.0,0.00019996,2]
[359945072,1746443213899,-450.0,0.00019999,2]
[359945073,1746443213908,-2861.91,0.0002,2]
[359945074,1746443213918,-3761.91,0.0002,2]
[359945075,1746443213934,-479.65,0.00019999,2]
[359945076,1746443213943,-3282.42,0.0002,2]
[359945077,1746443213954,-452.10817663,0.0002,2]
[359945078,1746443213964,-205.57904787,0.0002,2]
[359945079,1746443213975,-452.78573797,0.0002,2]
[359945080,1746443213986,-450.0,0.0002,2]
[359945081,1746443213997,-549.56,0.0002,2]
[359945082,1746443214013,-450.0,0.00019999,2]
[359945083,1746443214022,-1.63601563,0.0002,2]
[359945084,1746443214042,-450.0,0.00019999,2]
[359945085,1746443214051,-90.07192061,0.0002,2]
[359945086,1746443214062,-452.49506506,0.0002,2]
[359945087,1746443214077,-450.0,0.00019999,2]
[359945088,1746443214091,-29.65,0.00019999,2]
[359945089,1746443214100,-420.35,0.0002,2]
[359945090,1746443214111,-630.0,0.0002,2]
[359945091,1746443214122,-301680.73738886,0.0002,2]
[359945092,1746443232668,-300.0,0.00019892,2]
[359945093,1746443232695,-15738.4591,0.00019893,2]
[359945094,1746443232722,-1000.0,0.00019894,2]
[359945095,1746443232749,-151.0,0.000199,2]
[359945096,1746443232777,-1705.17411462,0.000199,2]
[359945097,1746443232803,-160.19803273,0.00019973,2]
[359945098,1746443232832,-500.8271587,0.00019973,2]
[359945099,1746443232858,-500.0,0.00019973,2]
[359945100,1746443232885,-179.76020981,0.00019973,2]
[359945101,1746443232913,-161.09167094,0.00019973,2]
[359945102,1746443232939,-500.0,0.00019973,2]
[359945103,1746443232965,-500.0,0.00019973,2]
[359945104,1746443232994,-500.0,0.00019973,2]
[359945105,1746443233022,-207.4,0.00019987,2]
[359945106,1746443233052,-151.0,0.00019988,2]
[359945107,1746443233079,-194.68130024,0.00019988,2]
[359945108,1746443233108,-500.0,0.00019993,2]
[359945109,1746443233137,-500.0,0.00019993,2]
[359945110,1746443233167,-500.0,0.00019993,2]
[359945111,1746443233195,-252.217496,0.00019993,2]
[359945112,1746443233225,-500.0,0.00019993,2]
[359945113,1746443233253,-524.44504459,0.00019993,2]
[359945114,1746443233285,-500.0,0.00019993,2]
[359945115,1746443233312,-464.4265026,0.00019993,2]
[359945116,1746443233339,-450.0,0.00019994,2]
[359945117,1746443233368,-450.0,0.00019994,2]
[359945118,1746443233394,-450.0,0.00019994,2]
[359945119,1746443233422,-500.0,0.00019995,2]
[359945120,1746443233450,-500.0,0.00019995,2]
[359945121,1746443233478,-500.0,0.00019995,2]
[359945122,1746443233506,-500.0,0.00019995,2]
[359945123,1746443233533,-447.36364942,0.00019995,2]
[359945124,1746443233562,-450.0,0.00019995,2]
[359945125,1746443233589,-450.0,0.00019995,2]
[359945126,1746443233748,-450.0,0.00019995,2]
[359945127,1746443233776,-450.0,0.00019995,2]
[359945128,1746443233804,-450.0,0.00019996,2]
[359945129,1746443233833,-596.95399614,0.00019996,2]
[359945130,1746443233862,-1071.49686378,0.00019996,2]
[359945131,1746443233889,-450.0,0.00019996,2]
[359945132,1746443233918,-450.0,0.00019996,2]
[359945133,1746443233945,-450.0,0.00019996,2]
[359945134,1746443233971,-177.70613023,0.00019996,2]
[359945135,1746443233998,-460.90549166,0.00019996,2]
[359945136,1746443234026,-450.0,0.00019996,2]
[359945137,1746443234053,-500.0,0.00019996,2]
[359945138,1746443234081,-450.0,0.00019996,2]
[359945139,1746443234110,-450.0,0.00019996,2]
[359945140,1746443234138,-450.0,0.00019996,2]
[359945141,1746443234166,-464.54825935,0.00019996,2]
[359945142,1746443234195,-450.0,0.00019996,2]
[359945143,1746443234221,-450.0,0.00019996,2]
[359945144,1746443234248,-450.0,0.00019998,2]
[359945145,1746443234281,-450.0,0.00019999,2]
[359945146,1746443234308,-450.0,0.00019999,2]
[359945147,1746443234335,-479.65,0.00019999,2]
[359945148,1746443234363,-450.0,0.00019999,2]
[359945149,1746443234391,-479.65,0.00019999,2]
[359945150,1746443234419,-449.88415063,0.00019999,2]
[359945151,1746443234447,-479.86,0.00019999,2]
[359945152,1746443234474,-450.0,0.00019999,2]
[359945153,1746443234502,-450.0,0.00019999,2]
[359945154,1746443234530,-178.49233392,0.00019999,2]
[359945155,1746443234568,-450.0,0.00019999,2]
[359945156,1746443234602,-450.0,0.00019999,2]
[359945157,1746443234634,-450.0,0.00019999,2]
[359945158,1746443234664,-450.0,0.00019999,2]
[359945159,1746443234693,-450.0,0.00019999,2]
[359945160,1746443234721,-450.0,0.00019999,2]
[359945161,1746443234750,-450.0,0.00019999,2]
[359945162,1746443234781,-450.0,0.00019999,2]
[359945163,1746443234812,-450.0,0.00019999,2]
[359945164,1746443234842,-450.0,0.00019999,2]
[359945165,1746443234871,-450.0,0.00019999,2]
[359945166,1746443234900,-450.0,0.00019999,2]
[359945167,1746443234931,-450.0,0.00019999,2]
[359945168,1746443234961,-450.0,0.00019999,2]
[359945169,1746443234991,-450.0,0.00019999,2]
[359945170,1746443235021,-450.0,0.00019999,2]
[359945171,1746443235052,-450.0,0.00019999,2]
[359945172,1746443235083,-317.02,0.00019999,2]
[359945173,1746443235111,-357.99,0.00019999,2]
[359945174,1746443235140,-450.0,0.00019999,2]
[359945175,1746443235169,-450.0,0.00019999,2]
[359945176,1746443235199,-450.0,0.00019999,2]
[359945177,1746443235228,-450.0,0.00019999,2]
[359945178,1746443235258,-380.89,0.00019999,2]
[359945179,1746443235289,-230.21,0.00019999,2]
[359945180,1746443235317,-450.0,0.00019999,2]
[359945181,1746443235345,-450.0,0.00019999,2]
[359945182,1746443235374,-500.0,0.00019999,2]
[359945183,1746443235406,-450.0,0.00019999,2]
[359945184,1746443235435,-450.0,0.00019999,2]
[359945185,1746443235462,-450.0,0.00019999,2]
[359945186,1746443235490,-450.0,0.00019999,2]
[359945187,1746443235519,-450.0,0.00019999,2]
[359945188,1746443235549,-450.0,0.00019999,2]
[359945189,1746443235579,-450.0,0.00019999,2]
[359945190,1746443235608,-450.0,0.00019999,2]
[359945191,1746443235638,-450.0,0.00019999,2]
[359945192,1746443235667,-450.0,0.00019999,2]
[359945193,1746443235697,-450.0,0.00019999,2]
[359945194,1746443235728,-450.0,0.00019999,2]
[359945195,1746443235756,-450.0,0.00019999,2]
[359945196,1746443235784,-480.66355531,0.00019999,2]
[359945197,1746443235811,-233.43,0.00019999,2]
[359945198,1746443235839,-450.0,0.00019999,2]
[359945199,1746443235866,-450.0,0.00019999,2]
[359945200,1746443235897,-503.15,0.00019999,2]
[359945201,1746443235927,-450.0,0.00019999,2]
[359945202,1746443235956,-450.0,0.00019999,2]
[359945203,1746443235986,-450.0,0.00019999,2]
[359945204,1746443236018,-450.0,0.00019999,2]
[359945205,1746443236051,-94942.45994661,0.0002,2]
[359945206,1746443236067,-300.0,0.0002,2]
[359945207,1746443236083,-15738.4591,0.0002,2]
[359945208,1746443236095,-1000.0,0.0002,2]
[359945209,1746443236116,-151.0,0.00019524,2]
[359945210,1746443236139,-329.58240718,0.00019524,2]
[359945211,1746443236149,-450.0,0.00019999,2]
[359945212,1746443236158,-925.59170744,0.0002,2]
[359945213,1746443236169,-160.19803273,0.0002,2]
[359945214,1746443236180,-500.8271587,0.0002,2]
[359945215,1746443236192,-500.0,0.0002,2]
[359945216,1746443236211,-179.76020981,0.0002,2]
[359945217,1746443236222,-161.09167094,0.0002,2]
[359945218,1746443236237,-500.0,0.0002,2]
[359945219,1746443236251,-500.0,0.0002,2]
[359945220,1746443236419,-500.0,0.00019988,2]
[359945221,1746443236453,-168.65185757,0.00019988,2]
[359945222,1746443236462,-38.74814243,0.0002,2]
[359945223,1746443236478,-151.0,0.0002,2]
[359945224,1746443236496,-194.68130024,0.00019747,2]
[359945225,1746443236508,-285.90110694,0.00019747,2]
[359945226,1746443236517,-214.09889306,0.0002,2]
[359945227,1746443236529,-500.0,0.0002,2]
[359945228,1746443236545,-500.0,0.0002,2]
[359945229,1746443236556,-252.217496,0.0002,2]
[359945230,1746443236569,-500.0,0.0002,2]
[359945231,1746443236580,-524.44504459,0.0002,2]
[359945232,1746443236595,-500.0,0.0002,2]
[359945233,1746443236607,-464.4265026,0.0002,2]
[359945234,1746443236618,-450.0,0.0002,2]
[359945235,1746443236634,-450.0,0.0002,2]
[359945236,1746443236645,-450.0,0.0002,2]
[359945237,1746443236661,-500.0,0.0002,2]
[359945238,1746443236672,-500.0,0.0002,2]
[359945239,1746443236684,-500.0,0.0002,2]
[359945240,1746443236699,-500.0,0.0002,2]
[359945241,1746443236714,-447.36364942,0.0002,2]
[359945242,1746443236730,-450.0,0.0002,2]
[359945243,1746443236741,-450.0,0.0002,2]
[359945244,1746443236759,-450.0,0.00019996,2]
[359945245,1746443236783,-450.0,0.0002,2]
[359945246,1746443236795,-450.0,0.0002,2]
[359945247,1746443236807,-596.95399614,0.0002,2]
[359945248,1746443236819,-1071.49686378,0.0002,2]
[359945249,1746443236837,-450.0,0.00019999,2]
[359945250,1746443236848,-450.0,0.0002,2]
[359945251,1746443236859,-450.0,0.0002,2]
[359945252,1746443236870,-177.70613023,0.0002,2]
[359945253,1746443236883,-460.90549166,0.0002,2]
[359945254,1746443236894,-450.0,0.0002,2]
[359945255,1746443236918,-500.0,0.0002,2]
[359945256,1746443236976,-450.0,0.0002,2]
[359945257,1746443237027,-450.0,0.0002,2]
[359945258,1746443237038,-450.0,0.0002,2]
[359945259,1746443237059,-464.54825935,0.0002,2]
[359945260,1746443237071,-450.0,0.0002,2]
[359945261,1746443237086,-450.0,0.0002,2]
[359945262,1746443237096,-450.0,0.0002,2]
[359945263,1746443237107,-450.0,0.0002,2]
[359945264,1746443237119,-450.0,0.0002,2]
[359945265,1746443237130,-479.65,0.0002,2]
[359945266,1746443237142,-450.0,0.0002,2]
[359945267,1746443237153,-479.65,0.0002,2]
[359945268,1746443237168,-449.88415063,0.0002,2]
[359945269,1746443237179,-479.86,0.0002,2]
[359945270,1746443237190,-450.0,0.0002,2]
[359945271,1746443237202,-450.0,0.0002,2]
[359945272,1746443237213,-178.49233392,0.0002,2]
[359945273,1746443237224,-450.0,0.0002,2]
[359945274,1746443237241,-450.0,0.0002,2]
[359945275,1746443237252,-450.0,0.0002,2]
[359945276,1746443237265,-450.0,0.0002,2]
[359945277,1746443237279,-450.0,0.0002,2]
[359945278,1746443237293,-450.0,0.0002,2]
[359945279,1746443237305,-450.0,0.0002,2]
[359945280,1746443237315,-450.0,0.0002,2]
[359945281,1746443237326,-450.0,0.0002,2]
[359945282,1746443237337,-450.0,0.0002,2]
[359945283,1746443237348,-450.0,0.0002,2]
[359945284,1746443237359,-450.0,0.0002,2]
[359945285,1746443237370,-450.0,0.0002,2]
[359945286,1746443237381,-450.0,0.0002,2]
[359945287,1746443237392,-450.0,0.0002,2]
[359945288,1746443237404,-450.0,0.0002,2]
[359945289,1746443237415,-450.0,0.0002,2]
[359945290,1746443237430,-317.02,0.0002,2]
[359945291,1746443237441,-357.99,0.0002,2]
[359945292,1746443237452,-450.0,0.0002,2]
[359945293,1746443237463,-450.0,0.0002,2]
[359945294,1746443237478,-450.0,0.0002,2]
[359945295,1746443237489,-450.0,0.0002,2]
[359945296,1746443237500,-380.89,0.0002,2]
[359945297,1746443237511,-230.21,0.0002,2]
[359945298,1746443237522,-450.0,0.0002,2]
[359945299,1746443237532,-450.0,0.0002,2]
[359945300,1746443237544,-500.0,0.0002,2]
[359945301,1746443237555,-450.0,0.0002,2]
[359945302,1746443237572,-450.0,0.00019996,2]
[359945303,1746443237583,-450.0,0.0002,2]
[359945304,1746443237599,-450.0,0.0002,2]
[359945305,1746443237611,-450.0,0.0002,2]
[359945306,1746443237627,-450.0,0.0002,2]
[359945307,1746443237638,-450.0,0.0002,2]
[359945308,1746443237649,-450.0,0.0002,2]
[359945309,1746443237662,-450.0,0.0002,2]
[359945310,1746443237673,-450.0,0.0002,2]
[359945311,1746443237691,-450.0,0.0002,2]
[359945312,1746443237702,-450.0,0.0002,2]
[359945313,1746443237719,-450.0,0.00019999,2]
[359945314,1746443237730,-480.66355531,0.0002,2]
[359945315,1746443237741,-233.43,0.0002,2]
[359945316,1746443237785,-450.0,0.0002,2]
[359945317,1746443237796,-450.0,0.0002,2]
[359945318,1746443237810,-503.15,0.0002,2]
[359945319,1746443237823,-450.0,0.0002,2]
[359945320,1746443237842,-450.0,0.0002,2]
[359945321,1746443237859,-450.0,0.00019999,2]
[359945322,1746443237870,-450.0,0.0002,2]
[359945323,1746443237886,-5723.3490967,0.0002,2]
[359945324,1746443237896,-778.0,0.0002,2]
[359945325,1746443237905,-156065.18833535,0.0002,2]
[359945326,1746443242907,160.0,0.0003,32]
[359945328,1746443398688,500.0,0.00018939,2]
[359945329,1746443425026,278.22,0.00018929,2]
[359945336,1746443431514,-403.3554435,0.000197,2]
[359945337,1746443431524,-200.0,0.0001975,2]
[359945338,1746443431534,-200.0,0.00019837,2]